[Event "DVM U20w 2019"]
[Site "Braunschweig"]
[Date "2019.12.27"]
[Round "1"]
[White "Bardorz, Jana"]
[Black "Müdder, Melanie"]
[Result "1-0"]
[ECO "B31"]
[WhiteElo "2054"]
[BlackElo "1902"]
[Annotator "NA RC"]
[PlyCount "74"]
[EventDate "2019.12.27"]
[EventType "team-tourn"]
[EventRounds "7"]
[EventCountry "GER"]
[SourceTitle "playchess.com"]
[Source "ChessBase"]
[SourceQuality "1"]
[WhiteTeam "SC Bavaria Regensburg"]
[BlackTeam "SG Solingen"]
[TimeControl "40/5400+30:1800+30"]

1. e4 {[%emt 0:00:00]} c5 {[%emt 0:00:00]} 2. Nf3 {[%emt 0:00:00]} Nc6 {[%emt 0:00:00]} 3. Bb5 {[%emt 0:00:00]} g6 {[%emt 0:04:01]} 4. O-O {[%emt 0:05:55]} Bg7 {[%emt 0:00:18]} 5. Bxc6 {[%emt 0:08:33]} dxc6 {[%emt 0:03:00]} 6. d3 {[%emt 0:02:21]} e5 {[%emt 0:07:22]} 7. Be3 {[%emt 0:05:05]} Qd6 {[%emt 0:01:33]} 8. h3 {[%emt 0:04:36]} f5 {[%emt 0:13:01]} 9. exf5 {[%emt 0:06:29]} gxf5 {[%emt 0:06:58]} 10. Nbd2 {[%emt 0:08:56]} f4 {[%emt 0:11:52]} 11. Ne4 {[%emt 0:05:03]} Qg6 {[%emt 0:00:25] unterminated} 12. Bxc5 {[%emt 0:12:04] unterminated} Bxh3 $16 {[%emt 0:21:33]} 13. Nh4 {[%emt 0:01:30]} Qh6 {[%emt 0:00:22]} 14. Nd6+ {[%emt 0:04:12]} Kd7 {[%emt 0:01:38]} 15. gxh3 {[%emt 0:09:42]} Qxh4 {[%emt 0:00:19]} 16. Kh2 {[%emt 0:02:27]} b6 {[%emt 0:02:30]} 17. Nf5 {[%emt 0:01:53]} Qf6 {[%emt 0:01:03]} 18. Qg4 {[%emt 0:01:59]} h5 {[%emt 0:05:21]} 19. Qxg7+ {[%emt 0:01:55]} Qxg7 {[%emt 0:00:07]} 20. Nxg7 {[%emt 0:00:08]} bxc5 {[%emt 0:00:48]} 21. Rae1 {[%emt 0:02:25]} Rh7 {[%emt 0:05:22]} 22. Rg1 {[%emt 0:03:29]} Nf6 {[%emt 0:02:47]} 23. Rxe5 {[%emt 0:04:48]} Ng4+ {[%emt 0:02:47]} 24. hxg4 {[%emt 0:00:16]} hxg4+ {[%emt 0:00:06]} 25. Nh5 {[%emt 0:01:34]} Rah8 {[%emt 0:01:38]} 26. Rxg4 {[%emt 0:00:39]} Rxh5+ {[%emt 0:00:19]} 27. Rxh5 {[%emt 0:00:05]} Rxh5+ {[%emt 0:00:05]} 28. Kg2 {[%emt 0:00:14]} Re5 {[%emt 0:00:59]} 29. Kf3 {[%emt 0:01:08]} Kd6 {[%emt 0:01:32]} 30. Rxf4 {[%emt 0:00:44]} Kd5 {[%emt 0:00:27]} 31. Re4 {[%emt 0:01:06]} Rf5+ {[%emt 0:00:28]} 32. Ke3 {[%emt 0:00:20]} Rh5 {[%emt 0:00:49]} 33. b3 {[%emt 0:01:31]} Rh3+ {[%emt 0:01:42]} 34. f3 {[%emt 0:00:44]} Rh2 {[%emt 0:01:49]} 35. Rc4 {[%emt 0:00:23]} Rh3 {[%emt 0:02:43]} 36. Kf4 {[%emt 0:00:35]} Rh7 {[%emt 0:01:07]} 37. Kg5 {[%emt 0:01:14]} Ke6 {[%emt 0:01:02] normal} 1-0

[Event "DVM U20w 2019"]
[Site "Braunschweig"]
[Date "2019.12.27"]
[Round "1"]
[White "Köhler, Inken"]
[Black "Schumann, Rabea"]
[Result "1-0"]
[ECO "B36"]
[WhiteElo "1998"]
[BlackElo "1873"]
[Annotator "NA RC"]
[PlyCount "49"]
[EventDate "2019.12.27"]
[EventType "team-tourn"]
[EventRounds "7"]
[EventCountry "GER"]
[SourceTitle "playchess.com"]
[Source "ChessBase"]
[SourceQuality "1"]
[WhiteTeam "TuRa Harksheide Norderstedt"]
[BlackTeam "SG Güstrow/Teterow"]
[TimeControl "40/5400+30:1800+30"]

1. e4 {[%emt 0:00:00]} c5 {[%emt 0:00:00]} 2. Nf3 {[%emt 0:00:00]} Nc6 {[%emt 0:00:00]} 3. d4 {[%emt 0:00:00]} cxd4 {[%emt 0:00:00]} 4. Nxd4 {[%emt 0:00:00]} g6 {[%emt 0:00:12]} 5. c4 {[%emt 0:00:07]} Nf6 {[%emt 0:03:44]} 6. Nc3 {[%emt 0:00:24]} d6 {[%emt 0:03:06]} 7. Be2 {[%emt 0:01:33]} Nxd4 {[%emt 0:00:48]} 8. Qxd4 {[%emt 0:00:14]} Bg7 {[%emt 0:00:30]} 9. Be3 {[%emt 0:03:19]} O-O {[%emt 0:00:45]} 10. Qd2 {[%emt 0:03:24]} Be6 {[%emt 0:05:25]} 11. Rc1 {[%emt 0:04:06]} Qa5 {[%emt 0:03:34]} 12. O-O {[%emt 0:03:46]} Rfc8 {[%emt 0:01:23]} 13. b3 {[%emt 0:03:13]} a6 {[%emt 0:03:45]} 14. Bf3 {[%emt 0:08:57]} Rab8 {[%emt 0:17:57]} 15. Ba7 {[%emt 0:11:30]} Ra8 {[%emt 0:01:55]} 16. Bd4 {[%emt 0:02:48]} Rab8 {[%emt 0:06:36]} 17. Qe3 {[%emt 0:06:05] unterminated} Ng4 {[%emt 0:22:27]} (17... Nd7 $11 {remains equal.}) 18. Bxg4 $1 {[%emt 0:01:59]} Bxg4 $16 {[%emt 0:03:44]} 19. Bb6 {[%emt 0:04:21]} Qe5 {[%emt 0:08:38]} 20. Nd5 {[%emt 0:07:27]} Rc6 {[%emt 0:08:03]} 21. f4 {[%emt 0:06:25]} Qe6 {[%emt 0:01:30]} 22. h3 {[%emt 0:02:07]} Bh5 {[%emt 0:01:04]} 23. g4 {[%emt 0:04:41]} Bxg4 {[%emt 0:00:27]} 24. hxg4 {[%emt 0:00:04]} Qxg4+ {[%emt 0:00:08]} 25. Kh2 {[%emt 0:01:39] normal} 1-0

[Event "DVM U20w 2019"]
[Site "Braunschweig"]
[Date "2019.12.27"]
[Round "1"]
[White "Sherif, Amina"]
[Black "Puls, Luisa"]
[Result "*"]
[ECO "B70"]
[WhiteElo "1945"]
[BlackElo "1551"]
[Annotator "NA RC"]
[PlyCount "42"]
[EventDate "2019.12.27"]
[EventType "team-tourn"]
[EventRounds "7"]
[EventCountry "GER"]
[SourceTitle "playchess.com"]
[Source "ChessBase"]
[SourceQuality "1"]
[WhiteTeam "TuRa Harksheide Norderstedt"]
[BlackTeam "SG Güstrow/Teterow"]
[TimeControl "40/5400+30:1800+30"]

1. e4 {[%emt 0:00:00]} c5 {[%emt 0:00:00]} 2. Nf3 {[%emt 0:00:00]} d6 {[%emt 0:00:00]} 3. d4 {[%emt 0:00:11]} cxd4 {[%emt 0:00:22]} 4. Nxd4 {[%emt 0:00:08]} Nf6 {[%emt 0:00:32]} 5. Nc3 {[%emt 0:00:07]} g6 {[%emt 0:00:30]} 6. g3 {[%emt 0:01:02]} Bg7 {[%emt 0:01:22]} 7. Bg2 {[%emt 0:00:23]} O-O {[%emt 0:00:50]} 8. O-O {[%emt 0:00:34]} Nbd7 {[%emt 0:04:15]} 9. h3 {[%emt 0:07:50]} Re8 {[%emt 0:09:14]} 10. Be3 {[%emt 0:01:38]} Ne5 {[%emt 0:10:47]} 11. b3 {[%emt 0:06:50]} Bd7 {[%emt 0:10:01]} 12. Qd2 {[%emt 0:06:21]} Bc6 {[%emt 0:09:28]} 13. Rac1 {[%emt 0:11:19]} Rc8 {[%emt 0:07:52]} 14. f4 {[%emt 0:02:45]} Ned7 {[%emt 0:02:29]} 15. Nxc6 {[%emt 0:00:55]} bxc6 {[%emt 0:04:16] unterminated} 16. Bxa7 {[%emt 0:10:13] unterminated} Qa5 $16 {[%emt 0:16:31]} ({Black should try} 16... Nb6) 17. Be3 {[%emt 0:03:37]} Red8 {[%emt 0:03:16]} 18. Rfd1 {[%emt 0:12:13]} Nc5 {[%emt 0:06:34]} 19. Nd5 {[%emt 0:08:01]} Qxd2 {[%emt 0:04:40]} 20. Nxf6+ {[%emt 0:00:09]} Bxf6 {[%emt 0:00:16]} 21. Rxd2 {[%emt 0:00:09]} Na6 {[%emt 0:01:16] unterminated} *

[Event "DVM U20w 2019"]
[Site "Braunschweig"]
[Date "2019.12.27"]
[Round "1"]
[White "Bashylina, Luisa"]
[Black "Pavlov, Liliane"]
[Result "1-0"]
[ECO "B53"]
[WhiteElo "1935"]
[BlackElo "1623"]
[Annotator "NA RC"]
[PlyCount "60"]
[EventDate "2019.12.27"]
[EventType "team-tourn"]
[EventRounds "7"]
[EventCountry "GER"]
[SourceTitle "playchess.com"]
[Source "ChessBase"]
[SourceQuality "1"]
[WhiteTeam "SG Solingen"]
[BlackTeam "SC Bavaria Regensburg"]
[TimeControl "40/5400+30:1800+30"]

1. e4 c5 2. Nf3 d6 3. d4 cxd4 4. Qxd4 Bd7 5. c4 e5 6. Qd3 Nc6 7. Be2 Nf6 8. Nc3 Be7 9. Bg5 a6 10. Rd1 Qa5 11. O-O Rd8 12. Bxf6 gxf6 13. Nd5 Nb4 14. Qd2 Nc6 15. Qh6 Be6 16. Nxf6+ Bxf6 17. Qxf6 Rg8 18. Ng5 Rg6 {unterminated} 19. Qh8+ Ke7 20. Qxh7 {unterminated} Rxg5 21. Qh4 {unterminated} Rdg8 {unterminated} 22. a3 $19 Nd4 23. Rxd4 f6 24. Rdd1 Rxg2+ 25. Kh1 Qd8 26. c5 d5 27. Bh5 Qd7 28. f4 Qa4 29. fxe5 R8g5 30. exf6+ Kf8 {normal} 1-0

[Event "DVM U20w 2019"]
[Site "Braunschweig"]
[Date "2019.12.27"]
[Round "1"]
[White "Peglau, Sarah"]
[Black "Schiewe, Nadin"]
[Result "*"]
[ECO "D31"]
[WhiteElo "1760"]
[BlackElo "1629"]
[Annotator "NA RC"]
[PlyCount "51"]
[EventDate "2019.12.27"]
[EventType "team-tourn"]
[EventRounds "7"]
[EventCountry "GER"]
[SourceTitle "playchess.com"]
[Source "ChessBase"]
[SourceQuality "1"]
[WhiteTeam "Schachzentrum Seeblick"]
[BlackTeam "Leegebrucher SF"]
[TimeControl "40/5400+30:1800+30"]

1. d4 {[%emt 0:00:00]} d5 {[%emt 0:00:00]} 2. c4 {[%emt 0:00:00]} e6 {[%emt 0:00:00]} 3. Nc3 {[%emt 0:00:00]} c6 {[%emt 0:00:00]} 4. e3 {[%emt 0:00:50]} Bd6 {[%emt 0:01:05]} 5. Nf3 {[%emt 0:03:53]} Nd7 {[%emt 0:00:56]} 6. Bd2 {[%emt 0:00:32]} f5 {[%emt 0:04:04]} 7. Qc2 {[%emt 0:01:44]} Ngf6 {[%emt 0:02:06]} 8. cxd5 {[%emt 0:01:43]} Nxd5 {[%emt 0:01:55]} 9. a3 {[%emt 0:03:08]} O-O {[%emt 0:00:50]} 10. Bd3 {[%emt 0:01:29]} N7f6 {[%emt 0:09:11]} 11. O-O {[%emt 0:01:15]} Qe8 {[%emt 0:02:57]} 12. b4 {[%emt 0:01:27]} Nxc3 {[%emt 0:06:33]} 13. Bxc3 {[%emt 0:01:15]} b6 {[%emt 0:00:58]} 14. Rfc1 {[%emt 0:05:19]} Bb7 {[%emt 0:02:00]} 15. Bb2 {[%emt 0:05:39]} Qg6 {[%emt 0:10:20]} 16. Qb3 {[%emt 0:05:58]} Rfe8 {[%emt 0:05:15]} 17. Kf1 {[%emt 0:08:30]} Ng4 {[%emt 0:11:16]} 18. h3 {[%emt 0:06:51]} Nh2+ {[%emt 0:10:17]} 19. Nxh2 {[%emt 0:00:21]} Bxh2 {[%emt 0:00:07]} 20. g4 {[%emt 0:06:28]} Kh8 {[%emt 0:02:30]} 21. f4 {[%emt 0:09:47]} Qh6 {[%emt 0:06:20]} 22. Kg2 {[%emt 0:05:55]} Qh4 {[%emt 0:01:44]} 23. d5 {[%emt 0:19:16]} Qg3+ {[%emt 0:01:23]} 24. Kf1 {[%emt 0:00:02]} Qxh3+ {[%emt 0:02:39]} 25. Ke1 {[%emt 0:01:54]} Qxe3+ {[%emt 0:00:59]} 26. Kd1 {[%emt 0:00:23] unterminated} *

[Event "DVM U20w 2019"]
[Site "Braunschweig"]
[Date "2019.12.27"]
[Round "1"]
[White "Sereda, Yaroslava"]
[Black "Prölß, Clara"]
[Result "1-0"]
[ECO "C77"]
[WhiteElo "1726"]
[BlackElo "1000"]
[Annotator "NA RC"]
[PlyCount "77"]
[EventDate "2019.12.27"]
[EventType "team-tourn"]
[EventRounds "7"]
[EventCountry "GER"]
[SourceTitle "playchess.com"]
[Source "ChessBase"]
[SourceQuality "1"]
[WhiteTeam "SG Solingen"]
[BlackTeam "SC Bavaria Regensburg"]
[TimeControl "40/5400+30:1800+30"]

1. e4 {[%emt 0:00:00]} e5 {[%emt 0:00:00]} 2. Nf3 {[%emt 0:00:00]} Nc6 {[%emt 0:00:00]} 3. Bb5 {[%emt 0:00:11]} a6 {[%emt 0:00:34]} 4. Ba4 {[%emt 0:00:12]} Nf6 {[%emt 0:01:08]} 5. d4 {[%emt 0:01:39]} b5 {[%emt 0:02:03]} 6. Bb3 {[%emt 0:02:16]} d6 {[%emt 0:02:41]} 7. Ng5 {[%emt 0:48:14]} d5 {[%emt 0:22:51]} 8. exd5 {[%emt 0:04:49]} Nxd4 {[%emt 0:10:25]} 9. O-O {[%emt 0:17:06]} Bd6 {[%emt 0:04:17]} 10. f4 {[%emt 0:05:21]} Nxb3 {[%emt 0:07:33]} 11. axb3 {[%emt 0:02:08]} O-O {[%emt 0:08:19]} 12. Qd3 {[%emt 0:02:52]} Re8 {[%emt 0:08:07]} 13. fxe5 {[%emt 0:02:32]} Bxe5 {[%emt 0:02:42]} 14. c4 {[%emt 0:02:40]} Bd7 {[%emt 0:04:10]} 15. Nc3 {[%emt 0:02:43]} h6 {[%emt 0:03:19]} 16. Nf3 {[%emt 0:01:26]} Bd6 {[%emt 0:06:08]} 17. Bd2 {[%emt 0:01:18]} c6 {[%emt 0:02:11]} 18. Rae1 {[%emt 0:02:25]} Bc5+ {[%emt 0:03:42]} 19. Nd4 {[%emt 0:00:44]} b4 {[%emt 0:01:50]} 20. Na4 {[%emt 0:00:37]} Bxd4+ {[%emt 0:02:22]} 21. Qxd4 {[%emt 0:00:08]} cxd5 {[%emt 0:01:01]} 22. cxd5 {[%emt 0:00:29]} Bxa4 {[%emt 0:01:10]} 23. bxa4 {[%emt 0:00:07]} Nxd5 {[%emt 0:01:12]} 24. Rxe8+ {[%emt 0:00:53]} Qxe8 {[%emt 0:01:06]} 25. Qxd5 {[%emt 0:00:37]} Rd8 {[%emt 0:01:08]} 26. Qc4 {[%emt 0:00:38]} Rxd2 {[%emt 0:00:38]} 27. Qxb4 {[%emt 0:00:45]} Qe3+ {[%emt 0:00:50]} 28. Kh1 {[%emt 0:00:15]} Qe2 {[%emt 0:01:01]} 29. Rg1 {[%emt 0:00:19]} Rxb2 {[%emt 0:00:33]} 30. Qc5 {[%emt 0:00:55]} g6 {[%emt 0:00:43]} 31. Qc8+ {[%emt 0:00:28]} Kh7 {[%emt 0:00:39]} 32. Qf8 {[%emt 0:00:35]} Rd2 {[%emt 0:00:55]} 33. Qxf7+ {[%emt 0:00:14]} Kh8 {[%emt 0:00:27]} 34. Qxg6 {[%emt 0:00:10]} Rd1 {[%emt 0:00:27]} 35. Qxh6+ {[%emt 0:00:21]} Kg8 {[%emt 0:00:15]} 36. Qb6 {[%emt 0:00:54]} Rxg1+ {[%emt 0:01:02]} 37. Qxg1 {[%emt 0:00:07]} Qc4 {[%emt 0:00:23]} 38. Qa1 {[%emt 0:01:09]} Kf8 {[%emt 0:00:34]} 39. h3 {[%emt 0:00:33] normal} 1-0

[Event "DVM U20w 2019"]
[Site "Braunschweig"]
[Date "2019.12.27"]
[Round "1"]
[White "Oberhofer, Marie"]
[Black "Berelowitsch, Dana"]
[Result "0-1"]
[ECO "B27"]
[WhiteElo "1700"]
[BlackElo "1792"]
[Annotator "NA RC"]
[PlyCount "77"]
[EventDate "2019.12.27"]
[EventType "team-tourn"]
[EventRounds "7"]
[EventCountry "GER"]
[SourceTitle "playchess.com"]
[Source "ChessBase"]
[SourceQuality "1"]
[WhiteTeam "SC Bavaria Regensburg"]
[BlackTeam "SG Solingen"]
[TimeControl "40/5400+30:1800+30"]

1. e4 {[%emt 0:00:00]} c5 {[%emt 0:00:00]} 2. Nf3 {[%emt 0:00:00]} g6 {[%emt 0:00:00]} 3. d4 {[%emt 0:00:00]} cxd4 {[%emt 0:00:00]} 4. Nxd4 {[%emt 0:00:01]} Bg7 {[%emt 0:00:00]} 5. Be3 {[%emt 0:00:43]} Nc6 {[%emt 0:00:05]} 6. Nc3 {[%emt 0:00:51]} Nf6 {[%emt 0:00:16]} 7. Nxc6 {[%emt 0:00:11]} bxc6 {[%emt 0:00:06]} 8. e5 {[%emt 0:00:17]} Nd5 {[%emt 0:00:11]} 9. Nxd5 {[%emt 0:00:42]} cxd5 {[%emt 0:00:06]} 10. Qxd5 {[%emt 0:01:01]} Rb8 {[%emt 0:00:15]} 11. Bc4 {[%emt 0:10:14]} O-O {[%emt 0:01:34]} 12. O-O {[%emt 0:04:03]} Bb7 {[%emt 0:02:10]} 13. Qd4 {[%emt 0:10:03]} Qc7 {[%emt 0:05:00]} 14. f4 {[%emt 0:13:38]} d6 {[%emt 0:10:44]} 15. Bb3 {[%emt 0:09:39]} dxe5 {[%emt 0:09:31]} 16. Qd2 {[%emt 0:08:37]} Rbd8 {[%emt 0:15:05]} 17. Qf2 {[%emt 0:01:42]} Ba6 {[%emt 0:05:59]} 18. Rfd1 {[%emt 0:01:58]} exf4 {[%emt 0:04:22]} 19. Bxf4 {[%emt 0:01:47]} e5 {[%emt 0:13:32]} 20. Bg5 {[%emt 0:01:57]} Rd7 {[%emt 0:06:44]} 21. Rd2 {[%emt 0:06:18]} Rxd2 {[%emt 0:04:31]} 22. Qxd2 {[%emt 0:00:24]} e4 {[%emt 0:01:00]} 23. c3 {[%emt 0:03:00]} Bd3 {[%emt 0:02:09]} 24. Bc2 {[%emt 0:04:56]} Bxc2 {[%emt 0:01:54]} 25. Qxc2 {[%emt 0:00:05]} Qc5+ {[%emt 0:00:44]} 26. Kf1 {[%emt 0:08:00]} Qxg5 {[%emt 0:00:30]} 27. Qxe4 {[%emt 0:00:40]} Qb5+ {[%emt 0:01:01]} 28. Qe2 {[%emt 0:00:13]} Qxe2+ {[%emt 0:01:11]} 29. Kxe2 {[%emt 0:00:04]} Rb8 {[%emt 0:00:12]} 30. b3 {[%emt 0:08:16]} Bxc3 {[%emt 0:00:24]} 31. Rc1 {[%emt 0:00:28]} Be5 {[%emt 0:01:23]} 32. h3 {[%emt 0:00:18]} Rb7 {[%emt 0:07:07]} 33. Rc5 {[%emt 0:00:49]} Bd6 {[%emt 0:03:24]} 34. Rd5 {[%emt 0:00:23]} Be7 {[%emt 0:01:00]} 35. Kd3 {[%emt 0:00:28]} Kg7 {[%emt 0:01:06]} 36. Kc4 {[%emt 0:02:35]} Kf6 {[%emt 0:00:42]} 37. Kd4 {[%emt 0:02:09]} Ke6 {[%emt 0:01:40]} 38. Re5+ {[%emt 0:01:07]} Kd6 {[%emt 0:00:17]} 39. Rd5+ {[%emt 0:00:46] normal} 0-1

[Event "DVM U20w 2019"]
[Site "Braunschweig"]
[Date "2019.12.27"]
[Round "1"]
[White "Jörs, Pia-Milena"]
[Black "Schnabel, Luise"]
[Result "*"]
[ECO "A48"]
[WhiteElo "1646"]
[BlackElo "1836"]
[Annotator "NA RC"]
[PlyCount "54"]
[EventDate "2019.12.27"]
[EventType "team-tourn"]
[EventRounds "7"]
[EventCountry "GER"]
[SourceTitle "playchess.com"]
[Source "ChessBase"]
[SourceQuality "1"]
[WhiteTeam "SG Güstrow/Teterow"]
[BlackTeam "TuRa Harksheide Norderstedt"]
[TimeControl "40/5400+30:1800+30"]

1. d4 {[%emt 0:00:00]} Nf6 {[%emt 0:00:00]} 2. Nf3 {[%emt 0:00:00]} g6 {[%emt 0:00:01]} 3. Bf4 {[%emt 0:00:10]} Bg7 {[%emt 0:00:19]} 4. e3 {[%emt 0:00:39]} O-O {[%emt 0:00:48]} 5. Bd3 {[%emt 0:03:37]} d6 {[%emt 0:02:04]} 6. h3 {[%emt 0:01:06]} Nbd7 {[%emt 0:01:48]} 7. O-O {[%emt 0:00:51]} Re8 {[%emt 0:02:43]} 8. Bh2 {[%emt 0:08:43]} e5 {[%emt 0:06:21]} 9. dxe5 {[%emt 0:02:03]} dxe5 {[%emt 0:07:26]} 10. Bc4 {[%emt 0:03:00]} Qe7 {[%emt 0:03:03]} 11. c3 {[%emt 0:02:28]} h6 {[%emt 0:07:45]} 12. Nbd2 {[%emt 0:06:41]} c6 {[%emt 0:09:34]} 13. Bb3 {[%emt 0:07:29]} b5 {[%emt 0:08:49]} 14. a4 {[%emt 0:11:00]} Bb7 {[%emt 0:05:09] unterminated} 15. Qc2 {[%emt 0:05:41] unterminated} Kf8 {[%emt 0:10:28] unterminated} 16. Rfd1 $11 {[%emt 0:09:16]} a6 {[%emt 0:03:50]} 17. Ne4 {[%emt 0:10:57]} Nxe4 {[%emt 0:06:14]} 18. Qxe4 {[%emt 0:00:37]} Nc5 {[%emt 0:03:06]} 19. Qc2 {[%emt 0:02:06]} Nxb3 {[%emt 0:03:07]} 20. Qxb3 {[%emt 0:00:09]} Rad8 {[%emt 0:00:59]} 21. Rxd8 {[%emt 0:01:36]} Rxd8 {[%emt 0:00:57]} 22. Rd1 {[%emt 0:00:39]} Rxd1+ {[%emt 0:01:40]} 23. Qxd1 {[%emt 0:00:06]} c5 {[%emt 0:00:26]} 24. axb5 {[%emt 0:02:56]} axb5 {[%emt 0:00:49]} 25. Qe2 {[%emt 0:00:40] unterminated} c4 {[%emt 0:02:58]} 26. e4 {[%emt 0:01:17] unterminated} Qc5 {[%emt 0:03:23]} 27. Qd2 {[%emt 0:01:25]} Ke7 {[%emt 0:00:53] unterminated} *

[Event "DVM U20w 2019"]
[Site "Braunschweig"]
[Date "2019.12.27"]
[Round "1"]
[White "Jacoby, Angelina"]
[Black "Peglau, Mirjam"]
[Result "*"]
[ECO "A80"]
[WhiteElo "1635"]
[BlackElo "1916"]
[Annotator "NA RC"]
[PlyCount "57"]
[EventDate "2019.12.27"]
[EventType "team-tourn"]
[EventRounds "7"]
[EventCountry "GER"]
[SourceTitle "playchess.com"]
[Source "ChessBase"]
[SourceQuality "1"]
[WhiteTeam "Leegebrucher SF"]
[BlackTeam "Schachzentrum Seeblick"]
[TimeControl "40/5400+30:1800+30"]

1. d4 {[%emt 0:00:00]} f5 {[%emt 0:00:00]} 2. Bf4 {[%emt 0:00:33]} Nf6 {[%emt 0:00:00]} 3. e3 {[%emt 0:01:14]} g6 {[%emt 0:02:08]} 4. Nf3 {[%emt 0:02:01]} Bg7 {[%emt 0:00:10]} 5. h3 {[%emt 0:06:14]} d6 {[%emt 0:02:29]} 6. Be2 {[%emt 0:03:24] A80: Dutch Defence: Unusual White second moves} O-O {[%emt 0:03:40]} 7. c3 {[%emt 0:02:08]} (7. O-O e6 8. Bh2 Nc6 9. Nbd2 Qe7 10. c3 b6 11. b4 a5 12. Qb3 Bb7 {½-½ (42) Aronian,L (2826)-Caruana,F (2781) Zuerich 2014}) 7... h6 {[%emt 0:02:35]} 8. Nbd2 {[%emt 0:05:23]} Nc6 {[%emt 0:02:55]} 9. O-O {[%emt 0:06:52]} Qe8 {[%emt 0:03:17]} 10. Bc4+ $146 {[%emt 0:16:38]} ({Predecessor:} 10. Bh2 g5 11. b4 e6 12. b5 Ne7 13. a4 {½-½ (36) Heinrich,O (1965)-Meissner,R (2043) GER email 2010}) 10... Kh7 {[%emt 0:01:04]} 11. Re1 {[%emt 0:02:51]} e5 {[%emt 0:01:00]} 12. dxe5 {[%emt 0:00:28]} dxe5 {[%emt 0:00:28]} 13. Bh2 {[%emt 0:00:10]} Bd7 {[%emt 0:08:38]} 14. e4 {[%emt 0:03:13]} f4 {[%emt 0:00:27]} 15. Qc2 {[%emt 0:06:13]} g5 {[%emt 0:01:21]} 16. Rad1 {[%emt 0:11:52] unterminated} g4 {[%emt 0:06:49]} 17. hxg4 {[%emt 0:00:51]} Nxg4 {[%emt 0:00:25] unterminated} 18. Nb3 {[%emt 0:04:45] unterminated} b6 {[%emt 0:05:29] unterminated} 19. Rd2 {[%emt 0:03:04]} Be6 $11 {[%emt 0:03:41]} 20. Bd5 {[%emt 0:08:39]} Rd8 {[%emt 0:01:13]} 21. Red1 {[%emt 0:01:03]} Rd6 {[%emt 0:01:49]} 22. a3 {[%emt 0:05:14]} Qg6 {[%emt 0:02:51]} 23. Bxe6 {[%emt 0:00:44]} Rxd2 {[%emt 0:05:39]} 24. Rxd2 {[%emt 0:00:09]} Qxe6 {[%emt 0:00:08]} 25. Rd5 {[%emt 0:02:33] unterminated} Ne7 {[%emt 0:01:39]} 26. Rd1 {[%emt 0:01:41] unterminated} Ng6 {[%emt 0:07:15] unterminated} 27. Nc1 {[%emt 0:01:28]} Qf6 {[%emt 0:02:05] unterminated} 28. Nd3 {[%emt 0:01:39] unterminated} Nh4 {[%emt 0:08:22]} 29. Nde1 {[%emt 0:00:29] unterminated} *

[Event "DVM U20w 2019"]
[Site "Braunschweig"]
[Date "2019.12.27"]
[Round "1"]
[White "Peglau, Dora"]
[Black "Sauer, Annika"]
[Result "1-0"]
[ECO "D02"]
[WhiteElo "1502"]
[BlackElo "1569"]
[Annotator "NA RC"]
[PlyCount "65"]
[EventDate "2019.12.27"]
[EventType "team-tourn"]
[EventRounds "7"]
[EventCountry "GER"]
[SourceTitle "playchess.com"]
[Source "ChessBase"]
[SourceQuality "1"]
[WhiteTeam "Schachzentrum Seeblick"]
[BlackTeam "Leegebrucher SF"]
[TimeControl "40/5400+30:1800+30"]

1. d4 d5 2. Nf3 Nf6 3. Bf4 Bf5 4. e3 e6 5. c4 Bd6 {[%emt 0:19:46]} 6. Bg3 {[%emt 0:03:26]} O-O {[%emt 0:00:28]} 7. Nc3 {[%emt 0:00:33]} c6 {[%emt 0:06:53]} 8. Rc1 {[%emt 0:01:08]} Ne4 {[%emt 0:05:44]} 9. Nxe4 {[%emt 0:04:28]} Bxe4 {[%emt 0:00:20]} 10. Bd3 {[%emt 0:01:30]} Bb4+ {[%emt 0:02:19]} 11. Ke2 {[%emt 0:01:12]} Bg6 {[%emt 0:03:21]} 12. a3 {[%emt 0:00:58]} Be7 {[%emt 0:01:25]} 13. Re1 {[%emt 0:02:14]} Nd7 {[%emt 0:00:31]} 14. cxd5 {[%emt 0:01:52]} exd5 {[%emt 0:03:29]} 15. Kf1 {[%emt 0:01:02]} Re8 {[%emt 0:08:57]} 16. b4 {[%emt 0:03:06]} Nf6 {[%emt 0:05:14]} 17. Qb3 {[%emt 0:02:59]} Bxd3+ {[%emt 0:01:47]} 18. Qxd3 {[%emt 0:00:10]} Ne4 {[%emt 0:00:22]} 19. Bf4 {[%emt 0:05:27]} Bd6 {[%emt 0:04:44]} 20. Bxd6 {[%emt 0:03:45]} Qxd6 {[%emt 0:00:18]} 21. b5 {[%emt 0:07:09]} Rac8 {[%emt 0:08:56]} 22. bxc6 {[%emt 0:01:09]} Rxc6 {[%emt 0:04:09]} 23. Rxc6 {[%emt 0:06:55]} Qxc6 {[%emt 0:00:45]} 24. Ne5 {[%emt 0:02:42]} Qe6 {[%emt 0:05:45]} 25. Qb5 {[%emt 0:06:29]} f6 {[%emt 0:03:09]} 26. Nd3 {[%emt 0:01:00]} b6 {[%emt 0:03:16]} 27. Nf4 {[%emt 0:00:23]} Nc3 {[%emt 0:03:33]} 28. Qb3 {[%emt 0:07:16]} Qc6 {[%emt 0:01:08]} 29. Rc1 {[%emt 0:01:01]} Qb5+ {[%emt 0:00:13]} 30. Qxb5 {[%emt 0:00:31]} Nxb5 {[%emt 0:00:04]} 31. a4 {[%emt 0:00:17]} Nd6 {[%emt 0:00:51]} 32. Nxd5 {[%emt 0:00:17]} Rc8 {[%emt 0:01:41]} 33. Ne7+ {[%emt 0:00:07] normal} 1-0